{"text_format":"3","workbook":"xlsx","n_sheets":4,"sheets":["Cover","Architectural specification","Final summary ","Pariament TI BoQ"],"not_rendered":{"external_links":30,"defined_names":4037},"read":"whole","date_system":"1900"}

{"sheet":"Cover","index":0,"n_rows":50,"n_cols":6,"rows_kept":50,"merged":[[0,5,6,8],[8,0,8,8],[9,0,9,8],[10,0,10,8],[11,0,11,8],[12,0,12,8]]}
[{"$nulls":5},"BILL OF QUANTITIES(BOQ)"]
{"$rows_empty":8}
["ESKOM REAL ESTATE PROJECT DELIVERY"]
["PARLIAMENT  ESKOM EXECUTIVE OFFICE PARK"]
[]
[]
[]
[]
[]
["Use this page as a cover page for the BOQ:"]
["1. Tenderers must ensure that adequate provision is made in the pricing schedule for the health and safety measures "]
["required by Eskom"]
["2. The original format pricing schedule must be populated by hand in black ink and will be the document used for"]
["evaluation purposes."]
["3. Tenderers are also required to electronically populate the Excel format and add to the required Flash Drive with your"]
["submission. This will be used to support verification of pricing errors."]
["4. The pricing instructions shall be read prior to pricing this document"]
["5. The PDF submission of the Pricing schedule (all pages) shall be signed by the supplier prior to submission of this tender"]
[]
["PRICING INFORMATION"]
[]
[]
["ENQUIRY NUMBER:"]
[]
[]
[]
["TENDERERS NAME:"]
[]
[]
["THE PRICE IN RAND (excluding Vat):"]
[]
[]
[]
[]
["DATE:"]
[]
[]
[]
["SIGNED BY:"]
[]
[]
[]
["DESIGNATION: "]

{"sheet":"Architectural specification","index":1,"n_rows":245,"n_cols":4,"rows_kept":245}
[]
[null,"GENERAL ARCHITECTURAL SPECIFICATIONS "]
[]
[null,"1 - FLOOR FINISHES"]
[null,"To be laid on properly levelled screed. Floor finishes to be laid in strict accordance with manufacturers guidelines, preference must be given to manufacturers recommended installers to retain required insurances and warranties on the product and installation methodology. "]
[]
[null,"CARPET TILES –"]
[null,"Areas: Executive Offices 1-4, Meeting Room 1, and Executive Boardroom"]
[null,"Heavy Commercial graded carpet with Axi or Nexbac Backing; +/- 8,4mm thickness; 4m width format or similar, with a fire rating index of 2 and/ or 3, as per SANS 10177-4 respectively. "]
[null,"·        Tiles to be laid in accordance with SANS 10186 fitting code of practice. "]
[null,"·        Carpet tiles to be manufactured in South Africa, with min 5year installation guarantee and a 5year product warranty to have a green tag level; a gold rated certification. "]
[null,"* *Tiles to be laid with adhesives in accordance with the manufacturers’ recommendations."]
[]
[null,"Areas: PA’s Space, and Passage 1, General Offices 1 & 2, Open Plan Offices, Meeting Room 2"]
[null,"Heavy Commercial graded carpet with Axi or Nexbac Backing; +/- 5,5mm thickness; 1000 x 250mm format or similar, with a fire index 2 and 3 as per SANS 10177-4 respectively. "]
[null,"·        Tiles to be laid in accordance with SANS 10186 fitting code of practice. "]
[null,"·        Carpet tiles to be manufactured in South Africa, with min 5year installation guarantee and a 5year product warranty to have a green tag level; a gold rated certification. "]
[null,"·        Tiles to be laid with adhesives in accordance with the manufacturers’ recommendations."]
[null,"**Tiles to be laid with adhesives in accordance with the manufacturers’ recommendations."]
[]
[null,"Areas: Multi-purpose Space"]
[null,"Heavy Commercial graded carpet with Bitumen Backing (Nexbac); +/- 6mm thickness; 500 x 500mm format or similar, with a fire index 2 and 3 as per SANS 10177-4 respectively. "]
[null,"·        Tiles to be laid in accordance with SANS 10186 fitting code of practice. "]
[null,"·        Carpet tiles to be manufactured in South Africa, with min 5year installation guarantee and a 5year product warranty to have a green tag level; a gold rated certification. "]
[null,"·        Tiles to be laid with adhesives in accordance with the manufacturers’ recommendations."]
[null,"**Tiles to be laid with adhesives in accordance with the manufacturers’ recommendations."]
[]
[null,"*Underlay required for wall-to-wall carpets, Specifications as below noted:"]
[null,"Extended SPECIFICATIONS:"]
[null,"·   100% recyclable Fibre / Yarn staple blend (PP/PA6)"]
[null,"·   Total Thickness: +/- 8,5mm; Product Width 4m"]
[]
[null,"ADDITIONAL PROPERTIES"]
[null,"·   Extremely durable; improved sound insulation; Improved Thermal Insulation"]
[null,"·   Odour free; Dust free; free of lumps"]
[null,"·   High resistance to mould and mildew, Anti-fatigue construction"]
[]
[]
[null,"VINYL TILES –"]
[null,"Areas: IT/Server Room"]
[null,"Permanently Static Dissipative, Heavy Commercial graded flooring; 2mm thickness; 2m x 23m length Sheet format or similar, with a fire rating index of 2 and/ or 3, as per SANS 10177-4 respectively. "]
[null,"·        to be laid in accordance with SANS 10070 fitting code of practice. "]
[null,"·        to be manufactured in South Africa, with min 5year installation guarantee and a 5year product warranty to have a green tag level; a gold rated certification. "]
[null,"* *Vinyl to be laid with adhesives in accordance with the manufacturers’ recommendations."]
[]
[]
[null,"Areas: Passage 2, Storeroom, Print room, Exhibition Area, Reception, Dining"]
[null,"Heavy Commercial graded flooring; +/-2,5mm thickness; stick down, LVT, dryback or similar, with a 0,55mm wear layer and a fire rating index of 2 and/ or 3, as per SANS 10177-4 respectively. "]
[null,"·        Tiles to be laid in accordance with SANS 10070 fitting code of practice. "]
[null,"·        Tiles to be manufactured in South Africa, with min 5year installation guarantee and a 5year product warranty to have a green tag level; a gold rated certification. "]
[null,"* *Vinyl to be laid with adhesives in accordance with the manufacturers’ recommendations."]
[]
[null,"Vinyl Tiles/Sheeting: Vinyl tiles (LVT) and sheet vinyl installation guidelines require strict moisture management, precise adhesive scheduling, and rolling protocols to prevent seam splitting or bubbling."]
[null,"1.      Environmental Controls Acclimatization: Condition all vinyl materials and adhesives in the installation space for at least 48 hours. Temperature: Maintain a constant room and subfloor temperature between 18°C and 29°C. Climate Stability: Maintain these temperature boundaries for 48 hours after completion to allow adhesive cross-linking."]
[null,"2.      Phase 1: Substrate Preparation Smoothness: Subfloor must be completely level; deviations must not exceed 3mm over a 3-metre radius. Remediation: Apply a high-compressive-strength, polymer-modified self-levelling underlayment to smooth out dips and rough concrete texture. Cleaning: Vacuum twice to remove all dust, drywall compound, grit, and structural debris. Moisture Limits: Concrete must register below 75% RH (ASTM F2170) or under 2.27kg / 1000 sq ft / 24 hours (Calcium Chloride ASTM F1869)."]
[null,"3.      Phase 2: Layout & Dry Fitting Tiles (LVT): Snap perpendicular chalk lines to find the centre of the room, dry-laying tiles to ensure border cuts are at least half-tile width. Sheet Vinyl: Unroll and rough-cut sheets 50mm to 100mm longer than the room dimensions, letting the material relax flat before final trimming. Seam Planning: Position sheet seams away from high-traffic walkways and main doorway entry points."]
[null,"4.      Phase 3: Adhesive ApplicationTrowel Selection: Use the manufacturer-specified notched trowel (typically 1.6mm x 1.6mm x 1.6mm V-notch) to control spread rate. Open Time: Allow the pressure-sensitive or wet-set adhesive to flash off according to ambient humidity (typically 10 to 30 minutes). Transfer Check: For wet-set adhesives, ensure immediate 100% glue transfer to the vinyl backing without oozing through joints."]
[null,"5.      Phase 4: Placement & Rolling Air Elimination: Lay the vinyl down smoothly from the centre outward to push out trapped air pockets. Three-Section Rolling: Roll the entire floor with a heavy 45kg to 68kg three-section roller. Cross-Rolling: Roll first along the width, then crosswise along the length to thoroughly flatten adhesive ridges. Detail Rolling: Use a hand-roller along wall edges, seams, and tight corners to guarantee bond integrity."]
[null,"6.      Phase 5: Seam Sealing (Sheet Vinyl Only) Chemical Welding: For commercial sheet vinyl, clean the seam channel and apply a cold-weld liquid sealant using a fine applicator nozzle. Heat Welding: For heavy-duty institutional sheet vinyl, rout the seam joint and use a hot-air welding gun with a matching vinyl welding rod, then trim flush."]
[null,"7.      Phase 6: Curing & Post-Installation Protection Foot Traffic: Restrict all foot traffic for a minimum of 24 hours. Machinery Moving: Wait 48 to 72 hours before rolling heavy equipment or light machinery onto the floor. Point Loads: Place protective plywood paths over the vinyl when moving machinery to prevent gouging or track indentations."]
[]
[null,"PORCELAIN/ CERAMIC TILES –"]
[null,"Areas: Executive Ablutions"]
[null,"Large Format, with rectified edges for narrow grout lines, slip-resistant, soft matte finish."]
[null,"Size: 750mm x 1500mm format"]
[]
[null,"Areas: General Ablutions, Kitchen and Kitchenette"]
[null,"Large Format, with rectified edges for narrow grout lines, slip-resistant, soft matte finish."]
[null,"Size: 600 x 600mm format."]
[]
[]
[null,"Ceramic/Porcelain Tiles: Ceramic and porcelain tile installations require strict adherence to substrate deflection limits, precise mortar coverage, and intentional movement joints to prevent cracking and tenting."]
[null,"1.      Environmental Controls & Substrate Limits Temperature: Maintain ambient and substrate temperatures between 10°C and 35°C during installation and for 48 hours after. Deflection: For porcelain or large-format tiles, the subfloor deflection must not exceed L/360 under live and dead loads. Cure Time: New concrete substrates must be cured for a minimum of 28 days before tile installation begins."]
[null,"2.      Phase 1: Substrate Preparation Flatness: Subfloor deviations must not exceed 6mm in 3 metres for standard tiles, or 3mm in 3 metres for large-format tiles (any edge >38cm). Isolation: Apply a liquid or sheet crack isolation membrane over concrete control joints or shrinkage cracks to prevent stress transfer. Cleaning: Remove all dust, laitance, sealers, and curing compounds to ensure an open, porous surface for mortar adhesion."]
[null,"3.      Phase 2: Mortar Selection & Mixing Mortar Type: Use a polymer-modified thin-set mortar meeting ANSI A118.4 or ISO C2S1 standards. Porcelain requires highly modified mortars to bond to its dense, non-porous back. Large-Format: Use a Medium Bed Mortar (LFT mortar) for heavy or large tiles to prevent slumping and lippage. Slake Time: Mix the mortar thoroughly, let it sit (slake) for 5 to 10 minutes to activate chemicals, then remix without adding more water."]
[null,"4.      Phase 3: Layout & Expansion Joints Chalk Lines: Snap perpendicular layout lines from the centre of the room, adjusting to avoid narrow sliver cuts at the perimeter walls. Movement Joints: Install EJ171-compliant expansion joints every 6 to 8 metres in interior spaces, and at all perimeters where the tile meets a vertical surface. Joint Width: Maintain a minimum grout joint width of 1.5mm for rectified tiles and 3mm for non-rectified tiles; never butt tiles tightly together."]
[null,"5.      Phase 4: Mortar Application & Tiling Directional Trowelling: Comb the mortar in straight, parallel lines using a square-notched trowel. Do not use swirl patterns, which trap air pockets. Back-Buttering: Flat-trowel a thin layer of mortar onto the back of every large-format tile to guarantee 95% mortar coverage (required for commercial/heavy traffic zones). Setting & Levelling: Bed the tile into the mortar, pushing perpendicular to the ridges to collapse them. Use a tile levelling clip system to eliminate edge lippage."]
[null,"6.      Phase 5: Grouting Preparation: Remove all levelling clips and clean excess, dried thin set out of the grout joints before it cures completely. Application: Pack the grout (cementitious or chemical-resistant epoxy) firmly into the joints using a hard rubber float held at a 45-degree angle. Clean-up: Wait for the grout to firm up slightly, then wipe the tile faces diagonally with a damp, tightly wrung hydro-sponge. Use a microfiber cloth to buff off remaining grout haze after 2 to 4 hours."]
[null,"7.      Phase 6: Curing & Traffic Protection Grout Cure: Avoid walking on the newly grouted floor for at least 24 hours. Heavy Loads: Keep machinery, rolling carts, and heavy training equipment off the tiled surface for a minimum of 7 days."]
[null,"All floor finishes and colours to be advised by the Architect."]
[]
[null,"2 - INTERNAL WALLS: "]
[]
[null,"DRYWALL - Soundproof –"]
[null,"Areas: Executive Offices, Meeting Rooms"]
[null,"High-performance acoustic drywall system: non-load bearing, soundproof, single frame drywall that uses dense gypsum, steel cores or constrained layer-damping to reduce sound."]
[]
[null,"DRYWALL – Moisture Resistant Wall System –"]
[null,"Areas: Ablutions and Kitchens"]
[null,"Lightweight, non-load bearing, which has water repellant additives in the core and treated facing (or similar approved). Board thickness 12,5mm."]
[]
[null,"DRYWALL – Moisture Resistant Wall System –"]
[null,"Areas: All other walls"]
[null,"Lightweight, non-load bearing high-performance fire-resistant system, providing a fire rating of up-to 60minutes."]
[]
[null,"DRYWALL FINISHES"]
[null,"All Paint applications to be primed with 1 coat Professional Plaster Primer, then 2 coats of paint (smooth water based Low sheen). All Paint to be Professional Hygiene Low Sheen or similar. Colours: to Architectural Spec. "]
[]
[null,"INTERNAL WALL TILES"]
[null,"To be Matt White 200 x 200mm A Grade."]
[]
[null,"CURTAIN WALL SYSTEM (Internal):"]
[null,"Internal curtain walls and acoustic-rated space, Aluminium Systems utilizes a mix of specialized heavy duty architectural systems. Glazed Shopfront, with profiles that focus tightly on acoustic dampening, flush visual aesthetics, and simplified indoor assembly. The required system must sustain:"]
[null,"·        Glazing Flexibility: Built to support double glazing configurations natively. Standard internal pockets easily secure insulated glass units (IGUs) from 20 mm up to 32 mm thick."]
[null,"·        Acoustic Performance: The system features deep structural internal pockets that isolate glass edges using high-grade EPDM / SEBS gaskets, preventing structural flanking noise between corporate meeting rooms."]
[null,"·        Slim Sightlines: Engineered as a \"slim-line\" alternative to traditional stick curtain framing, reducing visible interior vertical lines while maintaining structural rigidity up to standard ceiling heights."]
[null,"·        Speed of Install: Fabricated in up to half the time of standard commercial framing due to clip-together profiles, eliminating messy on-site wet silicone work inside carpeted office environments."]
[null,"Summary of Internal Double-Glazing Engineering Specs"]
[null,"i.","Aluminium Grade: Architectural extruded 6063-T6 alloy providing sharp, clean line definitions across indoor viewing angles."]
[null,"ii.","Glazing Gaskets: Employs co-extruded SEBS/EPDM rubber dry-glazing gaskets, which remain stable under indoor HVAC environments and avoid shrinkage gaps over time."]
[null,"iii.","Thermal Breaks: Optional integrated thermal breaks are available for internal walls that divide temperature-controlled data centers or cold chambers from standard office temperatures."]
[null,"iv.","Integrated System Inserts"]
[null,"v.","The curtain wall framing must seamlessly accept and integrate the following internal opening elements:"]
[null,"a.      Standard Windows."]
[null,"b.      Hinged Doors."]
[null,"c.      Sliding Doors."]
[null,"d.      Tilt & Turn Units."]
[]
[null,"3 - MATERIAL & FINISHES:"]
[null,"SURFACE TREATMENT "]
[null,"All aluminum extrusions must be finished in strict accordance with Qualicoat architectural powder-coating standards or processed via an approved anodizing specification to resist UV degradation and atmospheric corrosion."]
[]
[null,"WALLPAPER  "]
[null,"Majestic range: Fiberglass (or similar approved) - paint it with any of the suggested paint colours or"]
[null,"Majestic range:  Caro-Line (or similar approved)"]
[]
[null,"BLINDS AND CURTAINS:"]
[null,"BLINDS: - Smart Black-out Roller – smart controlled, on a silent motor and a premium, silent curtain track motorization. With a sun sensor or timer. Colour: to Architect’s Spec."]
[null,"Areas: Executive Offices, PA Area, Meeting Room 1 and Executive Boardroom"]
[]
[null,"BLINDS: - Shear weave – remote controlled, Linen or Velvet fabric on a silent motor and a premium, silent curtain track motorization. Colour: to Architect’s Spec."]
[null,"Areas: Open Plan Office, Office 1 & 2, Dining Room, Kitchen, Meeting Room 2, Exhibition Space, & Multi-purpose Space"]
[null,"4 - DOORS:"]
[null,"Internal Doors & Internal Door frames: Primed & Painted with Plascon Velvaglo VLO10 Tequila. External doors and door frames: timber hardwood to be sanded & sealed with Plascon Exterior Preservative Colour: Teak FBR19. Refer to Door schedule."]
[null,"DOORS:"]
[null,"1.      WOOD - 813 x 2100 High, Solid core timber veneer doors, sleek modern flush. Coil spring hinges, stainless steel handles with stainless steel self-closer and floor mounted door stopper, Lockset fit for door & room occupancy by manufacturer/supplier."]
[null,"2.      FULL GLASS - Frameless or slim-frame 1800 x 2100 High, glass doors. Lockset fit for door & room occupancy by manufacturer/supplier with or without 300x813mm stainless kickplate."]
[null,"3.      ALUMINIUME FRAMED - 1610 x 2032high, with safety glass and supplier's ironmongery. Natural Anodised Finish. Colour to Client or Architect's Spec. "]
[null,"4.      Single Commercial Veneer Flush Hollowcore Door 760x 2032 High: Semi Solid Door leaf to fit frame, to be sanded & primed with 1 coat primer and painted with 2 coats paint. Ironmongery to be brushed aluminium finish. Colours to Client or Architect's Spec. Lockset fit for door & room occupancy by manufacturer/supplier with or without 300x760mm stainless kickplate."]
[null,"5.      Single Commercial Veneer Flush Hollowcore Door 900x 2032 High: Semi Solid Door leaf to fit frame, to be sanded & primed with 1 coat primer and painted with 2 coats paint. Ironmongery to be brushed aluminium finish. Colours to Client or Architect's Spec"]
[null,"6.      FULL GLASS - Custom Frameless or slim-frame 3000 x 2100 High, sliding double glass door. With Supplier's ironmongery"]
[null,"7.      ALUMINIUME FRAMED - 813 x 2100high, with safety glass and supplier's ironmongery. Natural Anodised Finish. Colour to Client or Architect's Spec."]
[null,"8.      WOOD - 1800 x 2100 High, Solid core timber veneer doors, sleek modern flush."]
[null,"9.      WOOD - Service Duct Doors, Fire Escape Doors, with supplier's ironmongery"]
[null,"10.   FIRE DOOR - 1630mm Wide x 2032mm Height with 44~60mm thickness - Double Leaf, fully cladded Class A Fire door with Class A fire rated frame, Fire rated ironmongery with surface mounted EN 1125 Horizontal panic push bar, with 3-locking vertical points with mild steel and electroplated door keeps and adjustable shoots, ironmongery coating finish to later specification, actuator units to be linked to monitoring/alarm system, Internal or external use"]
[]
[null,"Ironmongery & Hardware Specifications:"]
[null,"All hardware and ironmongery must be heavy-duty, marine-grade where applicable, and fully compatible with the chosen aluminum profile series to prevent galvanic corrosion."]
[null,"·     Hinged Doors: Equipped with minimum Grade 13 stainless steel ball-bearing hinges or heavy-duty pivot mechanisms. Locking mechanisms must utilize a secure 3-point or 5-point hook-bolt system [Insert Lock Brand/Model] with euro-profile cylinders master-keyed to the building layout. Overhead heavy-duty door closers [Insert Closer Code] must be fitted to high-traffic routes."]
[null,"·     Sliding Doors: Fitted with adjustable dual tandem stainless-steel rollers engineered to support the specific double-glazed panel weights. Locking mechanisms must feature multi-point hook locks with internal flush pulls or D-handles [Insert Handle Style]."]
[null,"·     Finish: All visible hardware handles and plates must match the architectural finish specification or be finished in Matt Black Powder."]
[]
[null,"Warranties & Maintenance for Aluminium Finishes:"]
[null,"·     Finish Warranty: The applicator shall provide a written product warranty guaranteeing the finish against peeling, cracking, blistering, or significant color fading for a minimum period of 10 / 15 or 20 years."]
[null,"·     Structural Integrity Warranty: The manufacturer shall provide a 10 / 15- or 20-year warranty on the structural integrity of the system components and thermal breaks."]
[]
[]
[]
[]
[]
[null,"5 - FIRE: "]
[null,"Fire Hydrant and Fire Extinguishers to Fire Consultant's spec. and approval, with SABS & NBR certification."]
[]
[null,"6 - CEILINGS: "]
[null,"Flush Plastered ceilings:"]
[null," to be primed with 1 coat Professional Plaster Primer & 2 coats Professional Contractors Matt White."]
[null,"Lay in Ceilings:"]
[null,"·        Lay in 600 x 600mm or 600 x 1200mm ceiling tile fissured style exposed grid suspended ceilings in commercial buildings."]
[null,"·        Lay in ceiling, light diffuser panels 600 x 600mm or 600 x 1200mm."]
[null,"·        Lay in Ceiling Baffles sound barrier in various sizes, to be installed."]
[null,"·        Contractor to establish fixing positions prior to installation ensuring structural integrity and not to negatively impede new proposed work, any discrepancies to be raised with the Architectural Professional and Engineer."]
[null,"*The appropriate main tee and cross tee suspended ceiling grid system to be selected that has an exposed designed ''face'' in [colour selection to later specification] and that is according to part t of sans for this occupancy class. "]
[]
[null,"BULKHEADS:"]
[null,"To be Gypsum Board, non-combustible – general, various sizes refer to architect’s drawings."]
[]
[null,"CEILING TRAP DOORS: "]
[null,"Steel Ceiling Trapdoor with Hinged Steel Lid (610mm x 610mm)."]
[]
[null,"7 – ABLUTIONS and SANITARY FITTINGS"]
[null,"TAPS: "]
[null,"Whb to Male & Female WC & Staff WC: Demand (1 for hot & 1 for cold). Wheel-chair Accessible WHB. Medical Pillar Mixer Tap (hot & cold). Kitchen Sink taps: Star Tap Pillar Mixer.  "]
[]
[null,"WC PANS: "]
[null,"to be Elite Closed Coupled White Suite, or Sanitaryware Wall Hung White, with bolt through wall bracket fixing set for 220mm wall and floor bracket fixing set for use in 220mm wall (also adjustable for paraplegic applications). Wheel Chair Accessible WC: Paraplegic Low-Level Suite"]
[]
[null,"WHBS: "]
[null,"Vanity Basin, Whb for Accessible: Franke (Washroom Systems) Oval A Basin wall mounted 420 x 340 x 135mm stainless steel. "]
[]
[null,"URINALS: "]
[null,"Wall Hung Bowl Urinal supplied with domical grating, c.p top inlet spreader) and two hangar brackets with exposed top inlet flush valve."]
[null,"* To be as per Mechanical Engineer specifications and to comply with SANS 10400 regulations."]
[]
[null,"GRABRAILS: "]
[null,"Grabrails for Accessible WC: 3 x Cistern Rail 750x206mm, Dogleg Rail with 2 flanges 300x300 x300mm, 2 x RH & 2 x LH. Exact quantities to be assessed on site."]
[]
[null,"CORNICE: "]
[null,"75mm Polystyrene Cornice, painted with Wall & All Colour: White or Cornice to be a shadow Line Style: 45mm x 3600mm x 32.5mm or 25mmx25mm Cornice also known as plaster-trim sizing that works in unison with the suspended grid ceiling system and tiles."]
[]
[]
[]
[null,"TOILET PAPER HOLDER:"]
[null,"Sanicare Toilet Roll Holder - Holds 3 rolls (stainless steel) to be fitted to each WC."]
[]
[null,"DOORSTOPS: "]
[null,"Design Hardware Rubber Door Stop Size 24mm, Colour Black to be fitted to all doors."]
[]
[null,"8 - INTERNAL SIGNAGE: "]
[null,"To be from Design Hardware: Male Code: B3344 x 2, Female: Code: B3345 x 2, Physically Impaired Code: B3346 x1."]
[]
[null,"9 - FIRST AID EQUIPMENT:"]
[null," To be specified by SHEQ specialist."]
[]
[null,"10 - LIGHTING PANELS:"]
[null,"To Electrical Engineer’s Specification."]
[]
[null,"Specifications Policy (ESK PB AAQ 3) and the official Corporate Identity (CI) Manual to maintain corporate branding."]
[null,"Corporate Paint & Finishes Colour Codes"]
[null,"Eskom applies its primary and secondary corporate color palettes to interior architecture, partitions, and custom furniture elements:"]
[]
[null,"Element","Material/Brand Ref","Colour Code / Specification"]
[null,"Primary Corporate Blue","Doors, cubicles & accents","Pantone 287 C (100C, 70M, 0Y, 10K)"]
[null,"Secondary Corporate Green","Door frames & architraves","Pantone 582 C (30C, 0M, 100Y, 45K)"]
[null,"Corporate Gold","Pot plants & special details","Pantone 8004 C (40C, 40M, 55Y, 5K)"]
[]
[null,"Reception Desktop","Laminate Face","Formica – Sierra Granite (534)"]
[null,"Powder Coating","Desk/table legs & metal handles","Akzo Nobel Interpon 600 Matt (ANP 9054 / Cowrie Gold)"]
[null,"General Interior Walls","Wall Paint","Dulux 'Crushed Satin'"]
[]
[]
[]
[null,"11 - PLANTERS & FRAMING ACCESSORIES: "]
[null,"Decorative office pot plant holders must be finished in metallic CI colours. Corporate frames for notices or artwork must remain slimline and avoid wide, heavy structural profiles."]
[null,"PAINT:"]
[]
[null,"GENERAL NOTE:"]
[null,"It is advised that the appointed contractor should subcontract all specialized installations to the manufacturers preferred or recommended merchants, to maintain mandatory guarantees or warranties and insurances for the installations and supplied products. "]
[null,"All wall coverings, including paint colours should be verified once the contractor is on site as the colour codes may change due to amendments in industry norms/standards and compliances or manufacturer amendments."]
[null,"All floor finishes should be verified once the contractor is on site as specification codes may change due to amendments in industry norms/standards and compliances or manufacturer amendments."]
[null,"Eskom Corporate Identity must take precedence when considering all interior finishes, the contractor must obtain written approval from the designated professional before installation of any finishes."]
[null,"All indicated sanitaryware, including taps, mixer taps, wash hand basins, sinks, WC’s, should be verified once the contractor is on site as specification codes may change due to amendments in industry norms/standards and compliances or manufacturer amendments."]
[]
[null,"QUALITY ASSURANCE:"]
[null,"Under official Eskom Procurement Frameworks, the principal contractor is held contractually, financially, and legally liable for quality through the enforcement of the [Eskom Supplier Quality Management Specification paired with standard NEC3 contract conditions."]
[null,"A contractor cannot be awarded an Eskom tender without completing and signing Form A (Tender & Contract Quality Requirements). By signing this document, the contractor legally commits to satisfying both ISO 9001 standards and Eskom's exact material policies. If the contractor fails to fix the defect within the contractual window, Eskom reserves the right to assess the cost of having a third party rectify the defect and deduct those costs directly from the contractor."]

{"sheet":"Final summary ","index":2,"n_rows":32,"n_cols":3,"rows_kept":32}
[]
[null,"PARLIAMENT  ESKOM EXECUTIVE OFFICE PARK"]
[]
[null,"Summary","Amount"]
[]
[{"v":1,"d":"1 "},{"$f":"'Pariament TI BoQ'!B10","v":"Bill No. 1: Preliminaries and General"},{"$f":"'Pariament TI BoQ'!F170","v":0}]
[]
[{"v":2,"d":"2 "},{"$f":"'Pariament TI BoQ'!B12","v":"Bill No. 2: Schedule of cost components (SSCC)"},{"$f":"'Pariament TI BoQ'!F204","v":0}]
[]
[{"v":3,"d":"3 "},{"$f":"'Pariament TI BoQ'!B14","v":"Bill No. 3: Doors and glazing"},{"$f":"'Pariament TI BoQ'!F276","v":0}]
[]
[{"v":4,"d":"4 "},{"$f":"'Pariament TI BoQ'!B16","v":"Bill No. 4: Ceiling, partition, finishes and flooring"},{"$f":"'Pariament TI BoQ'!F414","v":0}]
[]
[{"v":5,"d":"5 "},{"$f":"'Pariament TI BoQ'!B18","v":"Bill No. 5: Sanitary fittings"},{"$f":"'Pariament TI BoQ'!F475","v":0}]
[]
[{"v":6,"d":"6 "},{"$f":"'Pariament TI BoQ'!B20","v":"Bill No. 6: Signages"},{"$f":"'Pariament TI BoQ'!F539","v":0}]
[]
[{"v":7,"d":"7 "},{"$f":"'Pariament TI BoQ'!B22","v":"Bill No. 7: Electrical works"},{"$f":"'Pariament TI BoQ'!F619","v":0}]
[]
[{"v":8,"d":"8 "},{"$f":"'Pariament TI BoQ'!B24","v":"Bill No. 8: Mechanical works"},{"$f":"'Pariament TI BoQ'!F747","v":0}]
[]
[{"v":9,"d":"9 "},{"$f":"'Pariament TI BoQ'!B26","v":"Bill No. 9: Control and Instrumentation (C&I) works"},{"$f":"'Pariament TI BoQ'!F891","v":0}]
[]
[{"v":10,"d":"10 "},{"$f":"'Pariament TI BoQ'!B28","v":"Bill No. 10: Wet services and gas suppression works"},{"$f":"'Pariament TI BoQ'!F909","v":0}]
[]
[]
[null,"Sub-total",{"$f":"SUM(C6:C25)","v":0}]
[]
[]
[null,"Value Added Tax 15%",{"$f":"C27*15%","v":0}]
[]
[null,"Carried to form of tender",{"$f":"C30+C27","v":0}]

{"sheet":"Pariament TI BoQ","index":3,"n_rows":909,"n_cols":6,"rows_kept":909}
[]
[null,"PARLIAMENT  ESKOM EXECUTIVE OFFICE PARK"]
[]
["Item","Description","Unit","Qty","Rate","Amount"]
[]
[null,"Preambles"]
[]
[null,"The rates and amounts entered in this Bill of Quantities shall be deemed to include the complete supply, installation, execution, testing, commissioning and completion of the Works in accordance with the Scope of Works, project requirements, drawings, specifications and all applicable standards and statutory requirements. \n\nThe Tenderer shall review all relevant documentation and make adequate allowance in the rates for all materials, labour, plant, equipment, accessories, fixings, finishes, wastage, transportation, supervision and any other requirements necessary to provide complete and fully functional installations. \n\nAll works shall be executed to an appropriate executive-level corporate standard, with particular attention to the quality and durability of materials, workmanship, detailing, consistency of finishes, functionality and overall aesthetic appearance across all relevant trades, and shall comply with SABS 0400, SANS 10400, SANS 204, the National Building Regulations (NBR), and all other applicable standards and statutory requirements. \n\nItems identified as “Rate Only” shall not be included in the final tender value or Contract Sum; however, all tenderers shall be required to price such items for tender evaluation and comparison purposes, the Employer may apply the same estimated quantities to the submitted rates of all Tenderers in order to establish comparable tender sums and ensure evaluation on an equitable and consistent basis in accordance with the applicable PPPFA requirements and procurement guidelines. Any estimated quantities used for this purpose shall be for evaluation purposes only and shall not constitute guaranteed quantities under the Contract."]
[]
[null,{"$f":"B34","v":"Bill No. 1: Preliminaries and General"}]
[]
[null,{"$f":"B172","v":"Bill No. 2: Schedule of cost components (SSCC)"}]
[]
[null,{"$f":"B206","v":"Bill No. 3: Doors and glazing"}]
[]
[null,{"$f":"B278","v":"Bill No. 4: Ceiling, partition, finishes and flooring"}]
[]
[null,{"$f":"B416","v":"Bill No. 5: Sanitary fittings"}]
[]
[null,{"$f":"B477","v":"Bill No. 6: Signages"}]
[]
[null,{"$f":"B541","v":"Bill No. 7: Electrical works"}]
[]
[null,{"$f":"B621","v":"Bill No. 8: Mechanical works"}]
[]
[null,{"$f":"B749","v":"Bill No. 9: Control and Instrumentation (C&I) works"}]
[]
[null,{"$f":"B893","v":"Bill No. 10: Wet services and gas suppression works"}]
[]
[null,"Design and enabling contract provision"]
[]
[null,"Where provision items are included in the Bill of Quantities, such allowances shall be utilised for unforeseen or additional works arising during the contract period and shall only be expended through approved Task Orders issued under this Enabling Contract. \n\nEach Task Order shall clearly define the required scope, quantities and applicable pricing prior to commencement and shall be subject to approval by the Employer or Employer’s Representative. Where design development is required, the works shall be priced following completion of the relevant design stage. \n\nAll Task Order pricing shall be transparent, market-aligned and supported by appropriate cost breakdowns, and the resulting works shall be measured, valued and certified in accordance with the contractual requirements. No expenditure against any provision allowance shall be incurred without an approved Task Order."]
[]
[1,"Bill No. 1: Preliminaries and General"]
[]
[1.1,"Fixed and value related charges"]
[]
["1.1.1","Contractual Requirements","Sum",1,null,{"$f":"D38*E38","v":0}]
[]
[null,"Establishment of Facilities on the Site (if applicable)"]
[]
["1.1.2","Telecommunication","Sum",1,null,{"$f":"D42*E42","v":0}]
[]
["1.1.3","Nameboards (2No)","Sum",1,null,{"$f":"D44*E44","v":0}]
[]
["1.1.4","Site Offices","Sum",1,null,{"$f":"D46*E46","v":0}]
[]
["1.1.5","Storage facilities","Sum",1,null,{"$f":"D48*E48","v":0}]
[]
["1.1.6","Ablution and latrine facilities","Sum",1,null,{"$f":"D50*E50","v":0}]
[]
["1.1.7","Tools and equipment","Sum",1,null,{"$f":"D52*E52","v":0}]
[]
["1.1.8","Water supply, electric power, compressed air, communications and sewerage system","Sum",1,null,{"$f":"D54*E54","v":0}]
[]
["1.1.9","Dealing with water","Sum",1,null,{"$f":"D56*E56","v":0}]
[]
["1.1.10","Access","Sum",1,null,{"$f":"D58*E58","v":0}]
[]
["1.1.11","Plant required for project","Sum",1,null,{"$f":"D60*E60","v":0}]
[]
["1.1.12","Removal of site establishment","Sum",1,null,{"$f":"D62*E62","v":0}]
[]
[1.2,"Securities (If applicable);"]
[]
[null,"The Contractor is to allow for all associated costs in obtaining and maintaining for the duration of the contract, the following security items (If applicable);"]
[]
["1.2.1","a) Performance bond","Sum",1,null,{"$f":"D68*E68","v":0}]
[]
[1.3,"Safety, health, environmental and quality requirements (if applicable)"]
[]
["1.3.1","a) Health and Safety File according to Annexure 1 \"Legal Compliance Audit Guideline & Template for Health and Safety file index included in the Client Health and Safety Specification","Sum",1,null,{"$f":"D72*E72","v":0}]
[]
["1.3.2","b) Health and safety plan, required in terms of the Occupational Health and Safety Act, 1993 (Act 85 of 1993) - Construction Regulations.","Sum",1,null,{"$f":"D74*E74","v":0}]
[]
["1.3.3","c) Health and Safety Training, inductions, clearances etc","Sum",1,null,{"$f":"D76*E76","v":0}]
[]
["1.3.4","d) Emergency Preparedness (First aid box/fire equipment, etc)","Sum",1,null,{"$f":"D78*E78","v":0}]
[]
["1.3.5","e) Occupational Medical fitness assessments","Sum",1,null,{"$f":"D80*E80","v":0}]
[]
["1.3.6","f) Personal Protective Clothing and Equipment (SABS Approved)","Sum",1,null,{"$f":"D82*E82","v":0}]
[]
["1.3.7","g) Fall Protection / Prevention Equipment and fall protection plan","Sum",1,null,{"$f":"D84*E84","v":0}]
[]
["1.3.8","h) RAMS Documentation (Risk Assessments and Method Statements)","Sum",1,null,{"$f":"D86*E86","v":0}]
[]
["1.3.9","j) Contractors Yard including workers eating area and change room. Supply, erection of all temporary fencing (including shade net) and barricading  which would be required during construction to make the site safe in accordance with the OHS Act, SHE spec. ","Sum",1,null,{"$f":"D88*E88","v":0}]
[]
["1.3.10","k) Barricading & signage post completion of works","Sum",1,null,{"$f":"D90*E90","v":0}]
[]
["1.3.11","l) Dust Control and noise monitoring","Sum",1,null,{"$f":"D92*E92","v":0}]
[]
[1.4,"Temporary works (if applicable)"]
[]
[null,"Allowance for a appointed competent  Temporary Works Designer and Temporary works inspector (Refer to definition regarding competent Designer and Inspector in terms of the Construction Regulations)."]
[]
["1.4.1","Allowance for temporary works designs and access arrangements required for the refurbishment works","Sum",1,null,{"$f":"D98*E98","v":0}]
[]
["1.4.2","Protection of existing structures","Sum",1,null,{"$f":"D100*E100","v":0}]
[]
[1.5,"Environmental and quality management (If applicable)"]
[]
[null,"The Contractor shall, before commencement of any work, compile an Environmental Management Plan (EMP). This must be done by a competent person, appointed in writing, and this must form part of the SHEQ file to be applied on the site."]
[]
["1.5.1","a) Environmental Management Plan","Sum",1,null,{"$f":"D106*E106","v":0}]
[]
["1.5.2","b) Set up for waste management","Sum",1,null,{"$f":"D108*E108","v":0}]
[]
["1.5.3","d) Quality Management plan","Sum",1,null,{"$f":"D110*E110","v":0}]
[]
[1.6,"Statutory approvals (if applicable)"]
[]
["1.6.1","All statutory approvals and permits required for the demolition works as per works information","Sum",1,null,{"$f":"D114*E114","v":0}]
[]
[1.7,"Engineering works including municipal approvals"]
[]
["1.7.1","Design of Wet services","Sum",1,null,{"$f":"D118*E118","v":0}]
[]
["1.7.2","Design of Gas Suppression ","Sum",1,null,{"$f":"D120*E120","v":0}]
[]
[1.8,"Time related charges"]
[]
[null,"Time related items shall be for the duration of the project operate and Maintain Facilities on the site for the duration of the Project (If applicable)"]
[]
["1.8.1","Telecommunications","Months",4,null,{"$f":"D126*E126","v":0}]
[]
["1.8.2","Site Offices for duration of the project","Months",4,null,{"$f":"D128*E128","v":0}]
[]
["1.8.3","Storage sheds for the duration of the project","Months",4,null,{"$f":"D130*E130","v":0}]
[]
["1.8.4","Ablution and latrine facilities for duration of project","Months",4,null,{"$f":"D132*E132","v":0}]
[]
["1.8.5","Tools and equipment","Months",4,null,{"$f":"D134*E134","v":0}]
[]
["1.8.6","Water supply, electric power, compressed air and communications","Months",4,null,{"$f":"D136*E136","v":0}]
[]
["1.8.7","Dealing with water","Months",4,null,{"$f":"D138*E138","v":0}]
[]
["1.8.8","Access","Months",4,null,{"$f":"D140*E140","v":0}]
[]
["1.8.9","Plant required for project (where applicable)","Months",4,null,{"$f":"D142*E142","v":0}]
[]
["1.8.10","Supervision and management costs for duration of project","Months",4,null,{"$f":"D144*E144","v":0}]
[]
["1.8.11","Company overheads for duration of project","Months",4,null,{"$f":"D146*E146","v":0}]
[]
[1.9,"Safety, health and environmental and quality requirements (If applicable)"]
[]
[null,"All safety related items shall be completed in line with the SHE specification and all obligations and requirements must be included in the tender sum. All Contractors tendering to submit the required documentation as per the Construction Project Health and Safety Tender Evaluation and Records template included in this tender."]
[]
["1.9.1","a) Emergency Preparedness (First aid box/fire equipment etc).","Months",4,null,{"$f":"D152*E152","v":0}]
[]
["1.9.2","b) Occupational Medical fitness assessments","Months",4,null,{"$f":"D154*E154","v":0}]
[]
["1.9.3","c) Personal Protective Clothing and Equipment (SABS Approved)","Months",4,null,{"$f":"D156*E156","v":0}]
[]
["1.9.4","d) Fall Protection / Prevention Equipment and fall protection plan","Months",4,null,{"$f":"D158*E158","v":0}]
[]
["1.9.5","Provision of Waste Management for duration of project","Months",4,null,{"$f":"D160*E160","v":0}]
[]
["1.9.6","e) Other safety related items including all compliance and documentation not mentioned above (if applicable provide breakdown)","Months",4,null,{"$f":"D162*E162","v":0}]
[]
["1.9.7","The Principal Contractor must in writing appoint Full Time Health & Safety Officers (registered with SACPCMP) to monitor the Health and Safety compliance on site daily, the ratio of safety officers will be one safety officer for every 200 employees on site.","Months",4,null,{"$f":"D164*E164","v":0}]
[]
["1.9.8","Full-time Construction Manager in terms of CR8(1)  responsible for managing all construction work on a site with the required formal tertiary qualifications relevant to construction management or be registered as a Construction Manager with the SACPCMP. (to be confirmed)","Months",4,null,{"$f":"D166*E166","v":0}]
[]
["1.9.9","Provision for Professional Engineer for the duration of the project (to be confirmed)","Months",4,null,{"$f":"D168*E168","v":0}]
[]
[null,"Carried to final summary",null,null,"R",{"$f":"SUM(F34:F169)","v":0}]
[]
[{"v":2,"d":"2 "},"Bill No. 2: Schedule of cost components (SSCC)"]
[]
[2.1,"Daywork rates"]
[]
[null,"Dayworks will only be used as a method to value additional work if such additional work is identified as dayworks on the Engineer's instruction."]
[]
[null,"Any amounts included for daywork items in  the schedules of quantities are provisional  and will be adjusted in accordance to final  values of work done or may be omitted in  it's entirety."]
[]
[null,"Rates for Labour (Inclusive of  Supervision, Small Tools and  Consumables)"]
[]
["2.1.1","General Worker","Hrs",1,null,"Rate Only"]
[]
["2.1.2","Semi Skilled (Construction hand)","Hrs",1,null,"Rate Only"]
[]
["2.1.3","Skilled (Artisan)","Hrs",1,null,"Rate Only"]
[]
["2.1.4","Civil/Structural Engineer","Hrs",1,null,"Rate Only"]
[]
["2.1.5","Supervisor","Hrs",1,null,"Rate Only"]
[]
["2.1.6","Mechanical Engineer","Hrs",1,null,"Rate Only"]
[]
["2.1.7","Electrical Engineer","Hrs",1,null,"Rate Only"]
[]
["2.1.8","Fire protection/services Engineer","Hrs",1,null,"Rate Only"]
[]
["2.1.9","Wet service Engineer","Hrs",1,null,"Rate Only"]
[]
["2.1.10","Environmental Engineer","Hrs",1,null,"Rate Only"]
[]
["2.1.11","ICT Engineer","Hrs",1,null,"Rate Only"]
[]
[{"$nulls":5},{"$f":"SUM(F172:F199)","v":0}]
[]
[{"v":3,"d":"3 "},"Bill No. 3: Doors and glazing"]
[]
[3.1,"Timber doors etc."]
[]
[null,"Solid core timber veneer doors, sleek modern flush, complete with aluminium frames and client's ironmongery as stated in the specification complete."]
[]
["3.1.1","813 x 2100mm high (D01, D02, D03, D04, D09, D12, D14, D16, D20, D21, D24, D41)","No",12,null,{"$f":"D212*E212","v":0}]
[]
[null,"Single Commercial Veneer Flush Hollowcore Door: Semi Solid Door leaf to fit frame, to be sanded & primed with 1 coat primer and painted with 2 coats paint. Ironmongery to be brushed aluminium finish. Colours to Client or Architect's Spec"]
[]
["3.1.2","760x 2032 High (D05, D06, D07, D19, D30, D31, D32, D33, D34, D38, D39, D40)","No",12,null,{"$f":"D216*E216","v":0}]
[]
[null,"Single Commercial Veneer Flush Hollowcore Door : Semi Solid Door leaf to fit frame, to be sanded & primed with 1 coat primer and painted with 2 coats paint. Ironmongery to be brushed aluminium finish. Colours to Client or Architect's Spec"]
[]
["3.1.3","900x 2032 High (D27, D30)","No",2,null,{"$f":"D220*E220","v":0}]
[]
[null,"Solid core timber veneer doors, sleek modern flush with client's ironmongery as stated in the specification complete."]
[]
["3.1.4","1800 x 2100 High (D17, D37)","No",2,null,{"$f":"D224*E224","v":0}]
[]
[null,"Service Duct Doors, Fire Escape Doors, with supplier's ironmongery"]
[]
["3.1.5","(D08, D11, D13,D15,D22, D25, D28, D36)","No",8,null,{"$f":"D228*E228","v":0}]
[]
[null,"Fire door  - Double Leaf, fully cladded Class A Fire door with Class A fire rated frame, Fire rated ironmongery with surface mounted EN 1125 Horizontal panic push bar, with 3-locking vertical points with mild steel and electroplated door keeps and adjustable shoots, ironmongery coating finish to later specification, actuator units to be linked to monitoring/alarm system, Internal or external use"]
[]
["3.1.6","1630mm Wide x 2032mm Height with 44-60mm thickness","No",1,null,{"$f":"D232*E232","v":0}]
[]
[3.2,"Blinds"]
[]
[null,"Automated Somfy (or similar approved)  - colour to be confirmed"]
[]
["3.2.1","Smart black-out roller blinds","m2",1,null,"Rate only"]
[]
["3.2.2","Remote controlled, SheerWeave Fabric blinds","m2",1,null,"Rate only"]
[]
[3.3,"Glazing"]
[]
[null,"Full height Custom Frameless or slim-frame sliding double glass door. Custom specified printed vinyl to glass with complete accessories and ironmongery"]
[]
["3.3.1","3000 x 2100 High (D42)","No",1,null,{"$f":"D246*E246","v":0}]
[]
[null,"Full Glass - Frameless or slim-frame, glass doors"]
[]
["3.3.2","1800 x 2100 High (D10, D29)","No",2,null,{"$f":"D250*E250","v":0}]
[]
[null,"Aluminium Framed Door - with safety glass and supplier's ironmongery. Natural Anodised Finish. Colour to Client or Architect's Spec"]
[]
["3.3.3","1610 x 2032 High (D18, D26, D35)","No",3,null,{"$f":"D254*E254","v":0}]
[]
["3.3.4","813 x 2100 High (D23)","No",1,null,{"$f":"D256*E256","v":0}]
[]
[3.4,"Shopfronts"]
[]
[null,"Aluminium framing paired with 6,38mm laminated safety glass or toughened safety glass to maximise acoustic separation. "]
[]
["3.4.1","2000 x 2000 high ","No",1,null,0]
[]
["3.4.2","4000 x 2000 high ","No",2,null,0]
[]
["3.4.3","4000 x 1800 high ","No",1,null,0]
[]
["3.4.4","4000 x 2000 high ","No",1,null,0]
[]
[3.5,"Custom printed graphics to glazing"]
[]
["3.5.1","Glass Frosting","m2",1,null,"Rate only"]
[]
["3.5.2","Vinyl to glass","m2",1,null,"Rate only"]
[]
[null,"Carried to final summary",null,null,"R",{"$f":"SUM(F207:F275)","v":0}]
[]
[null,"Bill No. 4: Ceiling, partition, finishes and flooring"]
[]
[4.1,"Ceiling"]
[]
[null,"The total estimated ceiling quantity is approximately 880 m². \nRefer to the ceiling layout drawings and architectural drawings for the extent, type, levels and configuration of ceilings. All ceilings are to be complete according to the  drawings and specifications."]
[]
["4.1.1","Flush plaster","m2",1,null,"Rate only"]
[]
["4.1.2","Stepped Bulkhead","m2",1,null,"Rate only"]
[]
["4.1.3","2 hour fire rated","m2",1,null,"Rate only"]
[]
["4.1.4","Slated/Clad Ceiling","m2",1,null,"Rate only"]
[]
["4.1.5","Gypsum rhinoboard flush plaster","m2",1,null,"Rate only"]
[]
["4.1.6","Flush plaster hanging ceiling","m2",1,null,"Rate only"]
[]
["4.1.7","Steel Ceiling Trapdoor with Hinged Steel Lid (610mm x 610mm).","m2",1,null,"Rate only"]
[]
[4.2,"Drywall partitioning"]
[]
[null,"The total estimated drywall quantity is approximately 250 m.\nHigh-Performance Acoustic Drywall System: non-loadbearing, sound resistant drywall panels (like Gyproc Soundbloc or similar) that use dense gypsum, steel cores, or constrained-layer damping to reduce sound. Wall length est 80m, moisture resistant 55m, fire rated 170m"]
[]
["4.2.1","Linear meter not exceeding 2700mm high","m",1,null,"Rate only"]
[]
["4.2.2","Square meters both sides","m2",1,null,"Rate only"]
[]
["4.2.3","Lightweight, non-load bearing, moisture resistant which has water repellent additives in the core and treated facing (or similar approved). Board thickness 12,5mm.","m",1,null,"Rate only"]
[]
["4.2.4","Lightweight, non-load bearing high-performance fire-resistant system, providing a fire rating of up-to 60minutes","m",1,null,"Rate only"]
[]
[4.3,"Wall tiles"]
[]
[null,"Ceramic wall tiles fixed with adhesive to bedding and flush pointed with tinted jointing compound "]
[]
["4.3.1","On walls","m2",65,null,{"$f":"D314*E314","v":0}]
[]
[4.4,"Painting"]
[]
[null,"All Paint applications to be primed with 1 coat Professional Plaster Primer, then 2 coats of paint (smooth water based Low sheen). All Paint to be Professional Hygiene Low Sheen or similar. Colours: to Architectural Spec. "]
[]
["4.4.1","On drywalls","m2",{"$f":"225*2.7","v":607.5},null,{"$f":"D320*E320","v":0}]
[]
[null,"Plascon Arniston. Colours to be specified"]
[]
["4.4.2","On concrete walls","m2",{"$f":"160*2.7","v":432},null,{"$f":"D324*E324","v":0}]
[]
[4.5,"Wallpapers"]
[]
[null,"Wallpaper and custom wallpaper specifications, including design, pattern, colour, finish, material, manufacturer and installation requirements, are to be confirmed and approved by the Client and Architect"]
[]
[null,"Wallpaper "]
[]
["4.5.1","8500 x 3000 High. Location: Open Plan Office","No",1,null,{"$f":"D332*E332","v":0}]
[]
["4.5.2","11000 x 3000 High. Location: Dining Room","No",1,null,{"$f":"D334*E334","v":0}]
[]
["4.5.3","3300 x 3000 High. Location: Exec Ablution wall near the Reception","No",1,null,{"$f":"D336*E336","v":0}]
[]
[null,"Custom wallpaper"]
[]
["4.5.4","11600 x 3000 High. Location: Multi-use Space","No",1,null,{"$f":"D340*E340","v":0}]
[]
["4.5.5","3400 x 3000 High. Location: Reception","No",1,null,{"$f":"D342*E342","v":0}]
[]
["4.5.6","6000 x 3000 High. Location: Female Ablution wall (facing Executive Toilets)","No",1,null,{"$f":"D344*E344","v":0}]
[]
["4.5.7","13850 x 3000 High. Location: in front of Exec Offices 3 & 4, Meeting Room 1","No",1,null,{"$f":"D346*E346","v":0}]
[]
["4.5.8","13850 x 3000 High. Location: in side of Exec Offices 1 & 2","No",1,null,{"$f":"D348*E348","v":0}]
[]
[4.6,"Acoustic wall panels and timber screens"]
[]
[null,"Contractor to supply Backlit acoustic wall panelling, with sound absorbing properties, blackboard clad in timber slats and embedded with an Eskom Logo. Timber slats to be clad with Oak Veneer, with matching colour ceiling acoustic baffling feature bords,  to Architect's approval"]
[]
[null,"Supply and install:"]
[]
["4.6.1","Wall panels, including all trims, joints, adhesives, fixings, cutting, fitting and making good, complete.","m2",1,null,"Rate only"]
[]
["4.6.2","Columns panels, including all trims, joints, adhesives, fixings, cutting, fitting and making good, complete. ","m2",1,null,"Rate only"]
[]
["4.6.3","Decorative timber screen to open-plan area, including all necessary supports, fixings and finishing complete.","m2",1,null,"Rate only"]
[]
[4.7,"Flooring"]
[]
[null,"Carpet (underlay required as per suppliers spec)"]
[]
[null,"Supply and installation of heavy commercial grading carpet tiles, including all necessary preparation, cutting, fitting, wastage, adhesives and finishing complete, laid in accordance with SANS 10186.\n\n"]
[]
[null,"Belgotex Destination range, rustin grain with AXI backing, colour as specified, or similar approved, estimated quantities and location:                                                                                                                                                                                                                                                                                                                 \n*Executive Boardroom - 40.60m2 (Ancient beech or similar approved)\n*Executive Offices - 1 & 2-80.60m2 (Timberland or similar approved)\n*Executive Offices - 3 & 4-60.20m2 (Mighty Mead or similar approved)\n*Executive Offices - 16.60m2 (Kerman or similar approved)"]
[]
["4.7.1","Ancient Beech (or similar approved)","m2",1,null,"Rate only"]
[]
["4.7.2","Timberland (or similar approved)","m2",1,null,"Rate only"]
[]
["4.7.3","Mighty Mead (or similar approved)","m2",1,null,"Rate only"]
[]
["4.7.4","Kerman (or similar approved)\n","m2",1,null,"Rate only"]
[]
[null,"Belgotex Landform range, with Bitumen backing (Nexbac)\n*PA' Offices, Passage 1 and Meeting Room 2 - 122.40m2 (Stroom or similar approved)"]
[]
["4.7.5","Stroom(or similar approved)","m2",1,null,"Rate only"]
[]
[null,"Belgotex - Terrain with Bitumen backing (Nexbac) to be laid staggered ashler, colours to be equally randomised\n*Open Plan Office and General Offices 1 & 2 - 90.60m2 (70% Canyon; 10% Alluvium; 10% Aquifer; 10% Plateua or similar approved)"]
[]
["4.7.6","70% Canyon; 10% Alluvium; 10% Aquifer; 10% Plateua (or similar approved)","m2",1,null,"Rate only"]
[]
[null," Belgotex - Grid - resilient and recyclable commercial grading.\n*Multi-purpose Space - 105.50m2 (Dryland or similar approved)"]
[]
["4.7.7"," Dryland (or similar approved)","m2",1,null,"Rate only"]
[]
[4.8,"Porcelain tiles"]
[]
[null,"Porcelain floor tiles fixed with adhesive to bedding  and flush pointed with tinted jointing compound \n*Kitchen, Ablutions, Kitchenette - 90m2"]
[]
["4.8.1","Floor tiles","m2",1,null,"Rate only"]
[]
[4.9,"Ceramic tiles"]
[]
[null,"Ceramic floor tiles fixed with adhesive to bedding  and flush pointed with tinted jointing compound \n*Kitchen, Ablutions, Kitchenette - 90m2"]
[]
["4.9.1","Floor tiles","m2",1,null,"Rate only"]
[]
[{"v":4.1,"d":"4.10"},"Vinyl"]
[]
[null,"Vinyl heavy commercial flooring, including all necessary floor preparation, cutting, fitting, adhesives, joints, trims, wastage and finishing complete, laid in accordance with SANS 10070. \n*IT/Server Room - 17.50m2 (Granit SD)\n*Executive Pause Area - 11.20m2 (Aggregate )\n*Exhibition, Reception, Passage 3, Print Room & Store Room - 137.40m2 (Penninsula)\n*Dining & Passage 2 - 109m2 (Fortitude )"]
[]
["4.10.1","Granit SD-Static - Dissipative","m2",1,null,"Rate only"]
[]
["4.10.2","Aggregate - Colour: Sand ","m2",1,null,"Rate only"]
[]
["4.10.3","Penninsula - Colour: Conifer","m2",1,null,"Rate only"]
[]
["4.10.4","Fortitude - Colour: Makeda","m2",1,null,"Rate only"]
[]
[null,"Carried to final summary",null,null,"R",{"$f":"SUM(F279:F413)","v":0}]
[]
[{"v":5,"d":"5 "},"Bill No. 5: Sanitary fittings"]
[]
[5.1,"Supply, deliver and install WBH"]
[]
["5.1.1","Franke Washroom Systems Oval wash-hand basin, wall-mounted stainless-steel basin, size 420 x 340 x 135mm, including waste fitting, trap, wall brackets, fixing accessories, sealing and all necessary connections, complete","No",5,null,{"$f":"D420*E420","v":0}]
[]
["5.1.2","Franke Washroom Systems Oval A wheelchair-accessible wash-hand basin, wall-mounted stainless-steel basin, size 420 x 340 x 135mm, including waste fitting, trap, wall brackets, fixing accessories, sealing and all necessary connections, complete","No",2,null,{"$f":"D422*E422","v":0}]
[]
[5.2,"Supply, deliver and install WC and Urinals"]
[]
["5.2.1","Elite Closed Coupled White WC Suite, or approved equivalent wall-hung white sanitaryware WC, complete with heavy-duty seat and cover, flushing mechanism, cistern where applicable, bolt-through wall bracket fixing set suitable for 220mm wall construction, complete.","No",7,null,{"$f":"D426*E426","v":0}]
[]
["5.2.2","wheelchair-accessible Paraplegic Low-Level WC Suite, complete with cistern, heavy-duty seat and cover, flushing mechanism, adjustable wall/floor fixing brackets suitable for paraplegic applications, complete.. ","No",2,null,{"$f":"D428*E428","v":0}]
[]
["5.2.3","Wall urinal with 4,5 litre high level automatic flushing cistern, complete","No",1,null,{"$f":"D430*E430","v":0}]
[]
[5.3,"Fittings"]
[]
[null,"Hinges, bolts, etc"]
[]
["5.3.1","WC indicator bolt","No",12,null,{"$f":"D436*E436","v":0}]
[]
[null,"Catches, Cabin, Hooks, ETC"]
[]
["5.3.2","Bathroom lockset with striking plate fixed to metal","No",12,null,{"$f":"D440*E440","v":0}]
[]
[null,"Push and kick plates"]
[]
["5.3.3","Push plate","No",5,null,{"$f":"D444*E444","v":0}]
[]
[null,"Doorstops"]
[]
["5.3.4","Design Hardware Rubber Door Stop Size 24mm, Colour Black to be fitted to all doors.","No",29,null,{"$f":"D448*E448","v":0}]
[]
[null,"Bathroom fittings"]
[]
["5.3.5","Sanicare Toilet Roll Holder - Holds 3 rolls (stainless steel) to be fitted to each WC.","No",10,null,{"$f":"D452*E452","v":0}]
[]
["5.3.6","Soap dish Holder","No",5,null,{"$f":"D454*E454","v":0}]
[]
[null,"Taps"]
[]
["5.3.7","Demand WHB taps, one hot and one cold per basin.","No",7,null,{"$f":"D458*E458","v":0}]
[]
["5.3.8","Medical pillar mixer tap to accessible WHB, hot and cold.","No",2,null,{"$f":"D460*E460","v":0}]
[]
["5.3.9","Star Tap pillar mixer to kitchen sink, hot and cold.","No",4,null,{"$f":"D462*E462","v":0}]
[]
[null,"Grabrails"]
[]
["5.3.10","Cistern grabrail, 750 x 206mm.","No",1,null,"Rate only"]
[]
["5.3.11","Dogleg grabrail, 300 x 300 x 300mm, with two flanges.","No",1,null,"Rate only"]
[]
["5.3.12","Right-hand accessible grabrail.","No",1,null,"Rate only"]
[]
["5.3.13","Left-hand accessible grabrail.","No",1,null,"Rate only"]
[]
[]
[null,"Carried to final summary",null,null,"R",{"$f":"SUM(F416:F474)","v":0}]
[]
[{"v":6,"d":"6 "},"Bill No. 6: Signages"]
[]
[null,"Manufacture, Supply, Deliver and Install"]
[]
[6.1,"Signages"]
[]
["6.1.1","Building facia  sign  informational / directional (Type 8B)","No",1,null,{"$f":"D483*E483","v":0}]
[]
["6.1.2","Eskom light Box(Type 10)","No",1,null,{"$f":"D485*E485","v":0}]
[]
["6.1.3","Wall mounted  informational and directional sign (Sign type 12A)","No",2,null,0]
[]
[6.2,"Suspended signs "]
[]
["6.2.1","Sign type 13B","No",5,null,0]
[]
["6.2.2","Sign type 14A","No",10,null,0]
[]
["6.2.3","Sign type 14C","No",5,null,0]
[]
["6.2.4","Sign type 14F","No",5,null,0]
[]
[6.3,"Name Badges "]
[]
["6.3.1","Type 16B","No",10,null,0]
[]
["6.3.2","Type 16C","No",10,null,0]
[]
[6.4,"Venue sign"]
[]
["6.4.1","Sign type 17A","No",10,null,0]
[]
["6.4.2","Sign type 17B","No",5,null,0]
[]
["6.4.3","Window decals","No",1,null,"Rate only"]
[]
["6.4.4","Sign type 18A","No",20,null,0]
[]
["6.4.5","Sign type 18B","No",20,null,0]
[]
["6.4.6","Sign type 23","No",10,null,{"$f":"D517*E517","v":0}]
[]
["6.4.7","Sign type 24","No",10,null,{"$f":"D519*E519","v":0}]
[]
[6.5,"Wall mounted corporate signature (logo) sign"]
[]
["6.5.1","Sign type 20","No",1,null,0]
[]
["6.5.2","Sign type 21A","No",2,null,0]
[]
["6.5.3","Sign type 21B","No",3,null,0]
[]
["6.5.4","Sign type 21C","No",2,null,0]
[]
["6.5.5","Sign type 21D","No",2,null,0]
[]
["6.5.6","Sign type 21E","No",2,null,0]
[]
["6.5.7","Sign type 21F","No",4,null,0]
[]
["6.5.8","Sign type 21G","No",4,null,0]
[]
[null,"Carried to final summary",null,null,"R",{"$f":"SUM(F478:F538)","v":0}]
[]
[{"v":7,"d":"7 "},"Bill No. 7: Electrical works"]
[]
[7.1,"General requirements"]
[]
[null,"The Contractor shall allow in the rates for the complete electrical installation for all labelling, identification and training of the Employer’s personnel in the operation and maintenance of the completed electrical installation. Including testing behind elevators"]
[]
["7.1.1","Testing and commissioning of complete electrical installation","Sum",1,null,{"$f":"D547*E547","v":0}]
[]
["7.1.2","Electrical Compliance Certification (Certificate of Compliance - CoC)","Sum",1,null,{"$f":"D549*E549","v":0}]
[]
[7.2,"Lighting"]
[]
[null,"Supply and install luminaires and accessories as specified in the schedules of luminaires, including fixing to any surface, connections and all associated accessories."]
[]
["7.2.1","DALI lighting control system, complete.","Sum",1,null,{"$f":"D555*E555","v":0}]
[]
["7.2.2","Type A 55W LED recessed linear luminaire, complete.","No",74,null,{"$f":"D557*E557","v":0}]
[]
["7.2.3","Type B 18W LED recessed round downlight, complete.","No",49,null,{"$f":"D559*E559","v":0}]
[]
["7.2.4","Type C 10W LED recessed round downlight, complete.","No",31,null,{"$f":"D561*E561","v":0}]
[]
["7.2.5","Type D 18W LED wall-mounted round bulkhead, complete.","No",4,null,{"$f":"D563*E563","v":0}]
[]
["7.2.6","Ceiling-mounted occupancy sensor, complete with accessories","No",30,null,{"$f":"D565*E565","v":0}]
[]
["7.2.7","1-gang, 1-way light switch, complete.","No",4,null,{"$f":"D567*E567","v":0}]
[]
["7.2.8","LED strip lights, complete with all necessary fittings, accessories, drivers and connections, in accordance with the required specifications.","m",1,null,"Rate only"]
[]
["7.2.9","Pendant light fittings, complete with all necessary accessories, supports, wiring connections and complete (Dining)","No",1,null,"Rate only"]
[]
["7.2.10","3 Pendant light fittings at varying heights, complete with all necessary accessories, supports and wiring connections and complete (Executive office)","No",1,null,"Rate only"]
[]
[7.3,"Power installation"]
[]
[null,"Supply and install power outlets, isolators, power skirting and associated accessories."]
[]
["7.3.1","16A switched socket outlet in flush 100 x 100mm wall box, complete to SANS 164-1 and SANS 164-2.","No",50,null,{"$f":"D579*E579","v":0}]
[]
["7.3.2","20A, 3P, IP65 lockable surface-mounted isolator in enclosure, complete.","No",3,null,{"$f":"D581*E581","v":0}]
[]
["7.3.3","20A, 2P, IP65 lockable surface-mounted isolator in enclosure, complete.","No",6,null,0]
[]
["7.3.4","2-tier PVC power skirting and accessories, complete.","m",50,null,0]
[]
["7.3.5","Corporate connection comprising 1 x normal SSO, 1 x dedicated SSO, 1 x 2-pin SSO, 1 x data blank, 1 x USB-C and 1 x USB-A, complete.","No",25,null,0]
[]
[7.4,"Distribution board and UPS"]
[]
[null,"Supply and install of distribution boards and UPS equipment, complete with all associated accessories and connections."]
[]
["7.4.1","UPS distribution board and accessories as per single line diagram, complete.","Sum",1,null,0]
[]
["7.4.2","60kVA online UPS with external batteries providing 60-minute autonomy and external bypass panel, complete.","Sum",1,null,0]
[]
[7.5,"Cabling"]
[]
[null,"Supply and installation of cables, complete with glands, lugs, terminations and installation in trench or ceiling void."]
[]
["7.5.1","3C x 2.5mm² Cu 0.6/1kV PVC cable, complete.","m",500,null,{"$f":"D601*E601","v":0}]
[]
["7.5.2","3C x 4mm² Cu 0.6/1kV PVC cable, complete.","m",500,null,0]
[]
["7.5.3","3C x 6mm² Cu 0.6/1kV PVC cable, complete.","m",100,null,0]
[]
["7.5.4","3C x 16mm² PVC/PVC/PVC 0.6/1kV cable with stranded copper conductors, complete.","m",100,null,{"$f":"D607*E607","v":0}]
[]
[7.6,"Conduit and cable containment"]
[]
[null,"Supply and installation of conduits, wiring ducts and associated accessories and supports."]
[]
["7.6.1","20mm PVC conduit, complete with draw wire and fittings, fixed in wall, concrete or surface mounted.","m",800,null,{"$f":"D613*E613","v":0}]
[]
["7.6.2","P8000 wiring duct, complete with accessories and supports.","m",200,null,0]
[]
["7.6.3","P9000 wiring duct, complete with accessories and supports.","m",200,null,{"$f":"D617*E617","v":0}]
[]
[null,"Carried to final summary",null,null,"R",{"$f":"SUM(F543:F618)","v":0}]
[]
[{"v":8,"d":"8 "},"Bill No. 8: Mechanical works"]
[]
[8.1,"Heating, Ventilation, and Air Conditioning (HVAC)"]
[]
["8.1.1","Supply, install, testing and commissioning of VRF heat recovery HVAC system (including air balancing)","Sum",1,null,{"$f":"D625*E625","v":0}]
[]
["8.1.2","Design, Supply and install toilet ventilation ducting, extract disc valves and accessories including the Cleaning of existing supply air ductwork","Sum",1,null,{"$f":"D627*E627","v":0}]
[]
["8.1.3","Certificate of Compliance(COC) for HVAC system","Sum",1,null,{"$f":"D629*E629","v":0}]
[]
[null,"Supply and install including associated components"]
[]
[null,"VRF "]
[]
["8.1.4","Indoor Ceiling Cassette Units capacity 3.62 kW","No",2,null,{"$f":"D635*E635","v":0}]
[]
["8.1.5","Indoor Ceiling Cassette Units capacity 4.52 kW","No",5,null,{"$f":"D637*E637","v":0}]
[]
["8.1.6","Outdoor unit capacity 33.5 Heat recovery","No",1,null,{"$f":"D639*E639","v":0}]
[]
["8.1.7","Decommissioning existing two direct expansion (DX) units","No",2,null,{"$f":"D641*E641","v":0}]
[]
["8.1.8","Supply, install, testing and commissioning 3.6KW cooling capacity DX units for the new  IT /  Server Room","No",2,null,{"$f":"D643*E643","v":0}]
[]
["8.1.9","8 port BC box","No",1,null,{"$f":"D645*E645","v":0}]
[]
[null,"Refrigerant Copper Piping"]
[]
["8.1.10"," Liquid diameter Ø6,35","m",8,null,{"$f":"D649*E649","v":0}]
[]
["8.1.11"," Gas diameter Ø9,52","m",130,null,{"$f":"D651*E651","v":0}]
[]
["8.1.12","Gas diameter Ø12,7","m",135,null,{"$f":"D653*E653","v":0}]
[]
[null,"Copper Bends"]
[]
["8.1.13"," 90° bend  diameter Ø6,35","No",8,null,{"$f":"D657*E657","v":0}]
[]
["8.1.14","45° bend diameter Ø9,52","No",8,null,{"$f":"D659*E659","v":0}]
[]
["8.1.15"," 90° bend diameter Ø9,52","No",41,null,{"$f":"D661*E661","v":0}]
[]
["8.1.16","45° bend diameter Ø12,7","No",8,null,{"$f":"D663*E663","v":0}]
[]
["8.1.17"," 90° bend diameter Ø12,7","No",37,null,{"$f":"D665*E665","v":0}]
[]
[null,"Copper Reducers"]
[]
["8.1.18","Ø15,9mm -  Ø12,7","No",5,null,{"$f":"D669*E669","v":0}]
[]
["8.1.19","Ø15,9mm -  Ø9,52","No",7,null,{"$f":"D671*E671","v":0}]
[]
["8.1.20"," Ø9,5mm -  Ø6,7","No",2,null,{"$f":"D673*E673","v":0}]
[]
[null,"Armaflex refrigerant pipe insulation "]
[]
["8.1.21","Diameter Ø6,7 ","m",8,null,{"$f":"D677*E677","v":0}]
[]
["8.1.22","Diameter Ø9,52 ","m",131,null,{"$f":"D679*E679","v":0}]
[]
["8.1.23","Diameter Ø9,52 ","m",135,null,{"$f":"D681*E681","v":0}]
[]
[null,"Cable trays"]
[]
["8.1.24"," 600x100","m",15,null,{"$f":"D685*E685","v":0}]
[]
["8.1.25"," 500x100","m",4,null,{"$f":"D687*E687","v":0}]
[]
["8.1.26","400x100","m",4,null,{"$f":"D689*E689","v":0}]
[]
["8.1.27","200x100","m",5,null,{"$f":"D691*E691","v":0}]
[]
[null,"Bends"]
[]
["8.1.28","200x100 (90°)","No",1,null,{"$f":"D695*E695","v":0}]
[]
["8.1.29","600x100 (45°)","No",2,null,{"$f":"D697*E697","v":0}]
[]
[null,"Reducers"]
[]
["8.1.30"," 600x100 - 500x100","No",1,null,{"$f":"D701*E701","v":0}]
[]
["8.1.31"," 600x100 - 200x100","No",1,null,{"$f":"D703*E703","v":0}]
[]
["8.1.32"," 500x100 - 400x100","No",1,null,{"$f":"D705*E705","v":0}]
[]
["8.1.33","400x100 - 200x100","No",1,null,{"$f":"D707*E707","v":0}]
[]
["8.1.34","T-Piece 600x100","No",1,null,{"$f":"D709*E709","v":0}]
[]
[null,"CRW Round Swirl Variable Air Volume Diffuser (electric powering for VAV) With Electric Heaters "]
[]
["8.1.35","Average of 135 L/S , 595x595 ","No",15,null,{"$f":"D713*E713","v":0}]
[]
["8.1.36","Average of 125 L/S , 595x595 ","No",10,null,{"$f":"D715*E715","v":0}]
[]
["8.1.37","Average of 120 L/S , 595x595 ","No",4,null,{"$f":"D717*E717","v":0}]
[]
["8.1.38","Average of 90 L/S , 595x595 ","No",1,null,{"$f":"D719*E719","v":0}]
[]
["8.1.39","Average of 60 L/S , 595x595 ","No",2,null,{"$f":"D721*E721","v":0}]
[]
["8.1.40","Average of 30 L/S , 600x600 Square Constant Volume diffuser with 150 diameter ","No",14,null,{"$f":"D723*E723","v":0}]
[]
["8.1.41","Air balancing Variable Air diffusers","No",46,null,{"$f":"D725*E725","v":0}]
[]
["8.1.42","Flexible ducting","m",80,null,{"$f":"D727*E727","v":0}]
[]
["8.1.43","Power supply Unit for Variable Air Volume  VAV diffusers","No",4,null,{"$f":"D729*E729","v":0}]
[]
["8.1.44","Return air grilles","No",23,null,{"$f":"D731*E731","v":0}]
[]
["8.1.45","Temperature sensor controllers","No",20,null,{"$f":"D733*E733","v":0}]
[]
["8.1.46","motorised dampers and actuators","No",1,null,{"$f":"D735*E735","v":0}]
[]
[8.2,"Hydroboil"]
[]
["8.2.1","Supply, install, test and commission Hydroboil unit complete with all necessary brackets, water and electrical connections, isolation valves, pipework, fittings, commissioning, manufacturer's warranty,","No",1,null,{"$f":"D739*E739","v":0}]
[]
[8.3,{"$f":"'[30] BOQ'!$B$8","v":"Fire protection"}]
[]
["8.3.1","Supply and install Fire signage","Sum",1,null,{"$f":"D743*E743","v":0}]
[]
["8.3.2","Supply and install  of Fire extinguishers ","Sum",1,null,{"$f":"D745*E745","v":0}]
[]
[null,"Carried to final summary",null,null,"R",{"$f":"SUM(F623:F746)","v":0}]
[]
[{"v":9,"d":"9 "},"Bill No. 9: Control and Instrumentation (C&I) works"]
[]
[9.1,"Fire detection"]
[]
["9.1.1","Supply, install, testing and commissioning of fire detection system","Sum",1,null,{"$f":"D753*E753","v":0}]
[]
[null,"Supply and install as part of the system"]
[]
[null,"Addressable fire detection and alarm devices:"]
[]
["9.1.2","Smoke detector","No",31,null,{"$f":"D759*E759","v":0}]
[]
["9.1.2","Heat detector","No",5,null,{"$f":"D761*E761","v":0}]
[]
["9.1.3","Sounder/strobe","No",8,null,{"$f":"D763*E763","v":0}]
[]
["9.1.4","Input/output module","No",6,null,{"$f":"D765*E765","v":0}]
[]
[null,"Fire alarm equipment, cabling and associated works:"]
[]
["9.1.5","Manual call point (MCP)","No",6,null,{"$f":"D769*E769","v":0}]
[]
["9.1.6","Fire alarm control panel (FACP)","No",1,null,{"$f":"D771*E771","v":0}]
[]
["9.1.7","Fire alarm loop cable, 2C+E, fire-rated","m",850,null,{"$f":"D773*E773","v":0}]
[]
["9.1.8","Junction box / detector mounting base","No",35,null,{"$f":"D775*E775","v":0}]
[null,""]
["9.1.9","Extended warranties upto 5 years (excluding OEM default product warranties)","Sum",1,null,{"$f":"D777*E777","v":0}]
[]
[9.2,"Public address (PA) / voice evacuation system"]
[]
["9.2.1","Supply, install, testing and commissioning of PA / Voice Evacuation system and Associated Works:","Sum",1,null,{"$f":"D781*E781","v":0}]
[]
[null,"Supply and install as part of the system"]
[]
["9.2.2","Ceiling speaker, 6 W","No",28,null,{"$f":"D785*E785","v":0}]
[]
["9.2.3","100 V speaker cable","m",950,null,{"$f":"D787*E787","v":0}]
[]
["9.2.4","Speaker junction box","No",20,null,{"$f":"D789*E789","v":0}]
[]
["9.2.5","Speaker attenuator / volume control","No",4,null,{"$f":"D791*E791","v":0}]
[]
["9.2.6","PA / voice alarm amplifier","No",1,null,{"$f":"D793*E793","v":0}]
[]
["9.2.7","Paging microphone","No",2,null,{"$f":"D795*E795","v":0}]
[]
["9.2.8","Paging console / station","No",1,null,{"$f":"D797*E797","v":0}]
[null,""]
["9.2.9","Extended warranties upto 5 years (excluding OEM default product warranties)","Sum",1,null,{"$f":"D799*E799","v":0}]
[]
[9.3,"Access control"]
[]
["9.3.1","Access control software setup, equipments and commissioning Associated Works:","Sum",1,null,{"$f":"D803*E803","v":0}]
[]
[null,"Supply and install as part of the system"]
[]
["9.3.2","Smart Locks - card reader( with audit logging, door monitoring, card credential management and emergency mechanical override.)","No",5,null,{"$f":"D807*E807","v":0}]
[]
["9.3.3","Smart Locks - Facial Recognition (with card backup, door monitoring, audit trail and emergency mechanical override including miscellaneous items to make the installation complete.)","No",8,null,{"$f":"D809*E809","v":0}]
[]
["9.3.4","Intercom - IP HD Video Intercom (complete with  Surface mount adapter for Video Intercom with operator/answering console/software, tamper protection and all other miscellaneous items required to make this installation complete)","No",1,null,{"$f":"D811*E811","v":0}]
[]
["9.3.5","Electromagnetic Lock, 12Vdc, fail unsecured, Incl  Fixing Plates, Z-bracket, etc.","No",16,null,{"$f":"D813*E813","v":0}]
[]
["9.3.6","Door position contact","No",16,null,{"$f":"D815*E815","v":0}]
[]
["9.3.7","Emergency break-glass unit","No",18,null,{"$f":"D817*E817","v":0}]
[]
["9.3.8","Request-to-exit device","No",16,null,{"$f":"D819*E819","v":0}]
[]
["9.3.9","Access control unit / controller","No",2,null,{"$f":"D821*E821","v":0}]
[]
["9.3.10","Power supply, 12/24 V DC with required battery backup","No",2,null,{"$f":"D823*E823","v":0}]
[]
["9.3.11","Access control cable / CAT6","m",1200,null,{"$f":"D825*E825","v":0}]
[null,""]
["9.3.12","Extended warranties upto 5 years (excluding OEM default product warranties)","Sum",1,null,{"$f":"D827*E827","v":0}]
[]
[9.4,"Closed circuit television (CCTV) system"]
[]
["9.4.1","Supply, install, testing and commission of CCTV System Equipments and Associated Works:","Sum",1,null,{"$f":"D831*E831","v":0}]
[]
[null,"Supply and install as part of the system"]
[]
["9.4.2","Indoor fixed CCTV camera","No",26,null,{"$f":"D835*E835","v":0}]
[]
["9.4.3","Indoor dome CCTV camera","No",8,null,{"$f":"D837*E837","v":0}]
[]
["9.4.4","Network Video Recorder (32 channel)","No",1,null,{"$f":"D839*E839","v":0}]
[]
["9.4.5","PoE switch, 24-port","No",1,null,{"$f":"D841*E841","v":0}]
[]
["9.4.6","PoE switch, 8-port","No",2,null,{"$f":"D843*E843","v":0}]
[]
["9.4.7","CCTV rack cabinet","No",1,null,{"$f":"D845*E845","v":0}]
[]
["9.4.8","UPS for CCTV system","No",1,null,{"$f":"D847*E847","v":0}]
[]
["9.4.9","CAT6 cable for CCTV","m",1500,null,{"$f":"D849*E849","v":0}]
[]
["9.4.10","Video Management System - (With Enterprise Software Licence/s)","No",1,null,{"$f":"D851*E851","v":0}]
[null,""]
["9.4.11","Extended warranties upto 5 years (excluding OEM default product warranties)","Sum",1,null,{"$f":"D853*E853","v":0}]
[]
[9.5,"Alarm system"]
[]
["9.5.1","Supply, install, testing and commission of alarm Equipment and Associated Works:","Sum",1,null,{"$f":"D857*E857","v":0}]
[]
[null,"Supply and install as part of the system"]
[]
["9.5.2","PIR Sensors - With brackets and all other miscellaneous items required to make this installation complete.","No",23,null,{"$f":"D861*E861","v":0}]
[]
["9.5.3","Alarm control panel - complete with enclosure, power supply, battery backup, communication module, tamper protection and interface capability ","No",1,null,{"$f":"D863*E863","v":0}]
[]
["9.5.4","Panic/Duress Button","No",4,null,{"$f":"D865*E865","v":0}]
[null,""]
["9.5.5","Extended warranties upto 5 years (excluding OEM default product warranties)","Sum",1,null,{"$f":"D867*E867","v":0}]
[]
[9.6,"Exhibition centre equipments"]
[]
["9.6.1","Video wall with screens (exhibition space)","Sum",1,null,{"$f":"D871*E871","v":0}]
[]
[9.7,"Integration"]
[]
[null,"System Integration, interfacing, testing of Control Room Equipment and Associated Works:"]
[]
["9.7.1","Interfacing and Integrated testing and commissioning of HVAC, Fire, PA, Access Control, Alarm and CCTV systems","Sum",1,null,{"$f":"D877*E877","v":0}]
[]
["9.7.2","Cable containment (conduit/trunking/cable tray) including fire stopping and making good","Sum",1,null,{"$f":"D879*E879","v":0}]
[]
["9.7.3","Labelling and device tagging","Sum",1,null,{"$f":"D881*E881","v":0}]
[]
["9.7.4","Security Management System (Command/Control Centre with Enterprise software license/s)","No",1,null,{"$f":"D883*E883","v":0}]
[]
["9.7.5","24/7 55-inch commercial (control room) grade monitoring screen/s -  (including desktop or wall-mount bracket, display cable/interface, configuration and integration with the VMS and command center and alarm monitoring workstation.)","No",2,null,{"$f":"D885*E885","v":0}]
[]
["9.7.6","Professional High Performance Workstation - (with HDMI (with supplied accessories) -  complete with keyboard, mouse, LED screen incl. OS software and licence/s)","Sum",1,null,{"$f":"D887*E887","v":0}]
[]
["9.7.7","As-built drawings, O&M manuals and operator training","Sum",1,null,{"$f":"D889*E889","v":0}]
[]
[null,"Carried to final summary",null,null,"R",{"$f":"SUM(F751:F890)","v":0}]
[]
[{"v":10,"d":"10 "},"Bill No. 10: Wet services and gas suppression works"]
[]
[10.1,"Wet services"]
[]
["10.1.1","Wet Services Assessment and Investigation","Sum",1,null,{"$f":"D897*E897","v":0}]
[]
["10.1.2","Wet services installation","Sum",1,null,{"$f":"D899*E899","v":0}]
[]
["10.1.3","Testing, Commissioning and Certification of wet services","Sum",1,null,{"$f":"D901*E901","v":0}]
[]
[10.2,"Gas suppression systems"]
[]
["10.2.1","Gas Suppression System installation","Sum",1,null,{"$f":"D905*E905","v":0}]
[]
["10.2.2","Testing, Commissioning of gas suppressions","Sum",1,null,{"$f":"D907*E907","v":0}]
[]
[null,"Carried to final summary",null,null,"R",{"$f":"SUM(F894:F908)","v":0}]